[Event "Titled Tuesday Blitz August 23 Late 2022"]
[White "Chigaev, Maksim"]
[Black "Reprintsev, Alexander"]
[WhiteFideId "4108116"]
[BlackFideId "14100541"]
[WhiteElo "2487"]
[BlackElo "2108"]
[Result "1-0"]
[Round "01"]
[TimeControl "180+1"]
[Date "2022.08.23"]
[WhiteClock "0:00:07"]
[BlackClock "0:00:13"]

1. e4 {[%clk 0:02:58]}  d5 {[%clk 0:02:59]} 2. exd5 {[%clk 0:02:59]}  Qxd5 {[%clk 0:02:59]} 3. Nc3 {[%clk 0:02:59]}  Qa5 {[%clk 0:02:59]} 4. Nf3 {[%clk 0:02:57]}  Nf6 {[%clk 0:02:37]} 5. d4 {[%clk 0:02:55]}  Nc6 {[%clk 0:02:18]} 6. Bb5 {[%clk 0:02:51]}  Ne4 {[%clk 0:02:15]} 7. O-O {[%clk 0:02:49]}  Nxc3 {[%clk 0:01:24]} 8. Bxc6+ {[%clk 0:02:49]}  bxc6 {[%clk 0:01:24]} 9. bxc3 {[%clk 0:02:49]}  Bf5 {[%clk 0:01:24]} 10. c4 {[%clk 0:02:22]}  e6 {[%clk 0:01:23]} 11. Ne5 {[%clk 0:02:16]}  Qa4 {[%clk 0:01:22]} 12. c3 {[%clk 0:02:10]}  Qxd1 {[%clk 0:01:21]} 13. Rxd1 {[%clk 0:02:11]}  c5 {[%clk 0:01:19]} 14. Ba3 {[%clk 0:02:09]}  cxd4 {[%clk 0:01:17]} 15. Bxf8 {[%clk 0:02:08]}  Kxf8 {[%clk 0:01:17]} 16. cxd4 {[%clk 0:02:07]}  f6 {[%clk 0:01:13]} 17. Nc6 {[%clk 0:02:07]}  a5 {[%clk 0:01:03]} 18. Rac1 {[%clk 0:01:59]}  Ra6 {[%clk 0:00:59]} 19. d5 {[%clk 0:01:55]}  Kf7 {[%clk 0:00:59]} 20. Nd4 {[%clk 0:01:42]}  Rb8 {[%clk 0:00:52]} 21. f3 {[%clk 0:01:32]}  c5 {[%clk 0:00:49]} 22. dxc6 {[%clk 0:01:24]}  Bg6 {[%clk 0:00:45]} 23. c7 {[%clk 0:01:24]}  Rc8 {[%clk 0:00:44]} 24. Nb5 {[%clk 0:01:25]}  Ke7 {[%clk 0:00:42]} 25. a4 {[%clk 0:01:14]}  Be8 {[%clk 0:00:41]} 26. c5 {[%clk 0:01:10]}  Rc6 {[%clk 0:00:36]} 27. Rd6 {[%clk 0:00:53]}  Rxc5 {[%clk 0:00:34]} 28. Rxc5 {[%clk 0:00:50]}  Bxb5 {[%clk 0:00:35]} 29. Rd8 {[%clk 0:00:41]}  Rxc7 {[%clk 0:00:34]} 30. Rxc7+ {[%clk 0:00:40]}  Kxd8 {[%clk 0:00:35]} 31. Rxg7 {[%clk 0:00:40]}  Bxa4 {[%clk 0:00:34]} 32. Ra7 {[%clk 0:00:40]}  Bc2 {[%clk 0:00:28]} 33. Rxa5 {[%clk 0:00:38]}  Ke7 {[%clk 0:00:28]} 34. Kf2 {[%clk 0:00:34]}  Kf7 {[%clk 0:00:28]} 35. Ke3 {[%clk 0:00:34]}  Kg6 {[%clk 0:00:28]} 36. g4 {[%clk 0:00:29]}  Bb3 {[%clk 0:00:23]} 37. h4 {[%clk 0:00:28]}  Bd5 {[%clk 0:00:23]} 38. f4 {[%clk 0:00:17]}  h5 {[%clk 0:00:22]} 39. f5+ {[%clk 0:00:17]}  Kh6 {[%clk 0:00:20]} 40. gxh5 {[%clk 0:00:10]}  Bc4 {[%clk 0:00:15]} 41. Kd4 {[%clk 0:00:08]}  Bb3 {[%clk 0:00:15]} 42. Rb5 {[%clk 0:00:05]}  Ba2 {[%clk 0:00:15]} 43. Rb2 {[%clk 0:00:05]}  e5+ {[%clk 0:00:13]} 44. Ke4 {[%clk 0:00:04]}  Bf7 {[%clk 0:00:14]} 45. Rb6 {[%clk 0:00:05]}  Kg7 {[%clk 0:00:12]} 46. h6+ {[%clk 0:00:05]}  Kxh6 {[%clk 0:00:12]} 47. Rxf6+ {[%clk 0:00:06]}  Kg7 {[%clk 0:00:13]} 48. Kxe5 {[%clk 0:00:07]} 1-0


[Site "https://www.chess.com"]

[Event "Titled Tuesday Blitz August 23 Late 2022"]
[White "D`Arruda, Ricardo D."]
[Black "Ibrahimli, Murad"]
[WhiteFideId "100692"]
[BlackFideId "13410229"]
[WhiteElo "2503"]
[BlackElo "2109"]
[Result "0-1"]
[Round "01"]
[TimeControl "180+1"]
[Date "2022.08.23"]
[WhiteClock "0:00:03"]
[BlackClock "0:00:12"]

1. Nf3 {[%clk 0:03:00]}  Nf6 {[%clk 0:02:59]} 2. d4 {[%clk 0:02:59]}  d5 {[%clk 0:03:00]} 3. c4 {[%clk 0:02:58]}  dxc4 {[%clk 0:02:59]} 4. e3 {[%clk 0:02:58]}  Bg4 {[%clk 0:02:59]} 5. Bxc4 {[%clk 0:02:57]}  e6 {[%clk 0:02:59]} 6. Qb3 {[%clk 0:02:56]}  Bxf3 {[%clk 0:02:59]} 7. gxf3 {[%clk 0:02:57]}  Qc8 {[%clk 0:02:49]} 8. Nc3 {[%clk 0:02:53]}  Nbd7 {[%clk 0:02:47]} 9. O-O {[%clk 0:02:50]}  Be7 {[%clk 0:02:44]} 10. f4 {[%clk 0:02:50]}  c6 {[%clk 0:02:42]} 11. f5 {[%clk 0:02:45]}  b5 {[%clk 0:02:32]} 12. Bd3 {[%clk 0:02:34]}  exf5 {[%clk 0:02:28]} 13. Bxf5 {[%clk 0:02:35]}  b4 {[%clk 0:02:13]} 14. Ne4 {[%clk 0:02:29]}  Nxe4 {[%clk 0:02:07]} 15. Bxe4 {[%clk 0:02:30]}  Nf6 {[%clk 0:02:02]} 16. Bg2 {[%clk 0:02:30]}  Qd7 {[%clk 0:01:52]} 17. e4 {[%clk 0:02:17]}  O-O-O {[%clk 0:01:53]} 18. Qxf7 {[%clk 0:02:07]}  Rhf8 {[%clk 0:01:47]} 19. Qc4 {[%clk 0:02:06]}  Nh5 {[%clk 0:01:28]} 20. Be3 {[%clk 0:01:48]}  Nf4 {[%clk 0:01:26]} 21. Bxf4 {[%clk 0:01:46]}  Rxf4 {[%clk 0:01:27]} 22. Rac1 {[%clk 0:01:43]}  c5 {[%clk 0:01:14]} 23. Rfd1 {[%clk 0:01:16]}  Rg4 {[%clk 0:01:09]} 24. f3 {[%clk 0:01:11]}  Rg6 {[%clk 0:01:05]} 25. dxc5 {[%clk 0:00:59]}  Qxd1+ {[%clk 0:00:58]} 26. Rxd1 {[%clk 0:00:58]}  Rxd1+ {[%clk 0:00:59]} 27. Kf2 {[%clk 0:00:58]}  Rd2+ {[%clk 0:01:00]} 28. Ke3 {[%clk 0:00:58]}  Rgxg2 {[%clk 0:00:58]} 29. Qe6+ {[%clk 0:00:53]}  Kd8 {[%clk 0:00:58]} 30. Qg8+ {[%clk 0:00:50]}  Kd7 {[%clk 0:00:58]} 31. c6+ {[%clk 0:00:44]}  Kxc6 {[%clk 0:00:54]} 32. Qe8+ {[%clk 0:00:43]}  Kd6 {[%clk 0:00:54]} 33. f4 {[%clk 0:00:35]}  Ke6 {[%clk 0:00:38]} 34. Qg8+ {[%clk 0:00:32]}  Kd7 {[%clk 0:00:34]} 35. Qf7 {[%clk 0:00:26]}  Rxh2 {[%clk 0:00:22]} 36. Qf5+ {[%clk 0:00:24]}  Kd8 {[%clk 0:00:22]} 37. Qa5+ {[%clk 0:00:22]}  Ke8 {[%clk 0:00:22]} 38. Qb5+ {[%clk 0:00:20]}  Kf8 {[%clk 0:00:22]} 39. Qf5+ {[%clk 0:00:19]}  Ke8 {[%clk 0:00:21]} 40. Qc8+ {[%clk 0:00:18]}  Rd8 {[%clk 0:00:20]} 41. Qc6+ {[%clk 0:00:18]}  Kf8 {[%clk 0:00:21]} 42. e5 {[%clk 0:00:18]}  Rxb2 {[%clk 0:00:21]} 43. f5 {[%clk 0:00:16]}  Bg5+ {[%clk 0:00:15]} 44. Kf3 {[%clk 0:00:15]}  Rbd2 {[%clk 0:00:15]} 45. Qc5+ {[%clk 0:00:12]}  Be7 {[%clk 0:00:15]} 46. Qc7 {[%clk 0:00:11]}  R2d3+ {[%clk 0:00:15]} 47. Ke2 {[%clk 0:00:10]}  R3d5 {[%clk 0:00:14]} 48. Ke3 {[%clk 0:00:06]}  a5 {[%clk 0:00:14]} 49. Ke4 {[%clk 0:00:07]}  Rd4+ {[%clk 0:00:14]} 50. Ke3 {[%clk 0:00:06]}  Rd3+ {[%clk 0:00:13]} 51. Ke2 {[%clk 0:00:06]}  a4 {[%clk 0:00:13]} 52. Qc6 {[%clk 0:00:03]}  R3d5 {[%clk 0:00:12]} 0-1


[Site "https://www.chess.com"]

[Event "Titled Tuesday Blitz August 23 Late 2022"]
[White "Hansen, Eric"]
[Black "Bodnar, Nikolay"]
[WhiteFideId "2606771"]
[BlackFideId "14106469"]
[WhiteElo "2568"]
[BlackElo "2283"]
[Result "1-0"]
[Round "01"]
[TimeControl "180+1"]
[Date "2022.08.23"]
[WhiteClock "0:01:34"]
[BlackClock "0:00:04"]

1. Nf3 {[%clk 0:02:55]}  d5 {[%clk 0:02:59]} 2. g3 {[%clk 0:02:28]}  Bg4 {[%clk 0:02:59]} 3. Bg2 {[%clk 0:02:28]}  Nd7 {[%clk 0:02:59]} 4. h3 {[%clk 0:02:29]}  Bh5 {[%clk 0:02:59]} 5. d3 {[%clk 0:02:30]}  c6 {[%clk 0:03:00]} 6. O-O {[%clk 0:02:28]}  Ngf6 {[%clk 0:03:00]} 7. c4 {[%clk 0:02:29]}  Bxf3 {[%clk 0:02:44]} 8. exf3 {[%clk 0:02:22]}  e6 {[%clk 0:02:43]} 9. f4 {[%clk 0:02:23]}  g6 {[%clk 0:02:43]} 10. Nc3 {[%clk 0:02:23]}  Bg7 {[%clk 0:02:43]} 11. g4 {[%clk 0:02:24]}  O-O {[%clk 0:02:40]} 12. Re1 {[%clk 0:02:24]}  a6 {[%clk 0:02:21]} 13. f5 {[%clk 0:02:09]}  exf5 {[%clk 0:02:14]} 14. gxf5 {[%clk 0:02:10]}  d4 {[%clk 0:02:13]} 15. Ne2 {[%clk 0:02:08]}  Ne8 {[%clk 0:01:32]} 16. Qb3 {[%clk 0:01:59]}  Qa5 {[%clk 0:01:14]} 17. Bf4 {[%clk 0:01:58]}  Nc5 {[%clk 0:01:13]} 18. Qc2 {[%clk 0:01:55]}  Rd8 {[%clk 0:00:35]} 19. Ng3 {[%clk 0:01:51]}  Nd6 {[%clk 0:00:33]} 20. Bd2 {[%clk 0:01:43]}  Qc7 {[%clk 0:00:30]} 21. b4 {[%clk 0:01:43]}  Nd7 {[%clk 0:00:28]} 22. Bf4 {[%clk 0:01:43]}  c5 {[%clk 0:00:27]} 23. Ne4 {[%clk 0:01:41]}  Be5 {[%clk 0:00:27]} 24. Bxe5 {[%clk 0:01:41]}  Nxe5 {[%clk 0:00:28]} 25. Nf6+ {[%clk 0:01:41]}  Kg7 {[%clk 0:00:28]} 26. Nd5 {[%clk 0:01:42]}  Qb8 {[%clk 0:00:20]} 27. f6+ {[%clk 0:01:41]}  Kh8 {[%clk 0:00:19]} 28. Rxe5 {[%clk 0:01:42]}  Nxc4 {[%clk 0:00:19]} 29. Re7 {[%clk 0:01:40]}  Nd6 {[%clk 0:00:18]} 30. Qxc5 {[%clk 0:01:39]}  Nf5 {[%clk 0:00:15]} 31. Rae1 {[%clk 0:01:39]}  Rc8 {[%clk 0:00:12]} 32. Rc7 {[%clk 0:01:38]}  b6 {[%clk 0:00:08]} 33. Qc6 {[%clk 0:01:33]}  Rxc7 {[%clk 0:00:07]} 34. Qxc7 {[%clk 0:01:33]}  h5 {[%clk 0:00:04]} 35. Qxb8 {[%clk 0:01:31]}  Rxb8 {[%clk 0:00:05]} 36. Ne7 {[%clk 0:01:32]}  a5 {[%clk 0:00:03]} 37. Nxf5 {[%clk 0:01:32]}  gxf5 {[%clk 0:00:03]} 38. bxa5 {[%clk 0:01:33]}  bxa5 {[%clk 0:00:03]} 39. Re5 {[%clk 0:01:33]}  Rb1+ {[%clk 0:00:03]} 40. Bf1 {[%clk 0:01:34]}  Rb2 {[%clk 0:00:04]} 41. Rxa5 {[%clk 0:01:34]} 1-0


[Site "https://www.chess.com"]

[Event "Titled Tuesday Blitz August 23 Late 2022"]
[White "Hollan, Petr"]
[Black "Deac, Bogdan-Daniel"]
[WhiteFideId "360945"]
[BlackFideId "1226380"]
[WhiteElo "2284"]
[BlackElo "2648"]
[Result "0-1"]
[Round "01"]
[TimeControl "180+1"]
[Date "2022.08.23"]
[WhiteClock "0:00:16"]
[BlackClock "0:00:05"]

1. e4 {[%clk 0:02:58]}  c6 {[%clk 0:03:00]} 2. d4 {[%clk 0:02:57]}  d5 {[%clk 0:03:00]} 3. Nc3 {[%clk 0:02:58]}  a6 {[%clk 0:03:00]} 4. Nf3 {[%clk 0:02:55]}  Bg4 {[%clk 0:03:00]} 5. h3 {[%clk 0:02:54]}  Bh5 {[%clk 0:03:00]} 6. e5 {[%clk 0:02:50]}  e6 {[%clk 0:02:59]} 7. Be3 {[%clk 0:02:50]}  Nd7 {[%clk 0:02:50]} 8. Ne2 {[%clk 0:02:45]}  Bxf3 {[%clk 0:02:47]} 9. gxf3 {[%clk 0:02:46]}  c5 {[%clk 0:02:43]} 10. c3 {[%clk 0:02:46]}  Ne7 {[%clk 0:02:41]} 11. Ng3 {[%clk 0:02:44]}  Qb6 {[%clk 0:02:36]} 12. Qd2 {[%clk 0:02:33]}  Nc6 {[%clk 0:02:28]} 13. a3 {[%clk 0:02:22]}  cxd4 {[%clk 0:02:19]} 14. cxd4 {[%clk 0:02:20]}  Qa5 {[%clk 0:01:41]} 15. Qxa5 {[%clk 0:02:14]}  Nxa5 {[%clk 0:01:41]} 16. Rc1 {[%clk 0:02:14]}  Nb6 {[%clk 0:01:32]} 17. Rc7 {[%clk 0:02:09]}  Rc8 {[%clk 0:01:20]} 18. Rxc8+ {[%clk 0:02:08]}  Nxc8 {[%clk 0:01:20]} 19. Bd3 {[%clk 0:02:07]}  g6 {[%clk 0:01:14]} 20. Ke2 {[%clk 0:02:06]}  Nb6 {[%clk 0:01:14]} 21. Rc1 {[%clk 0:02:05]}  Kd7 {[%clk 0:01:14]} 22. Nf1 {[%clk 0:02:03]}  Nac4 {[%clk 0:00:22]} 23. Rc2 {[%clk 0:01:59]}  Be7 {[%clk 0:00:22]} 24. Nd2 {[%clk 0:01:59]}  Rc8 {[%clk 0:00:20]} 25. Nxc4 {[%clk 0:01:49]}  dxc4 {[%clk 0:00:18]} 26. Be4 {[%clk 0:01:48]}  Nd5 {[%clk 0:00:19]} 27. Bd2 {[%clk 0:01:42]}  b5 {[%clk 0:00:18]} 28. Rc1 {[%clk 0:01:40]}  Bd8 {[%clk 0:00:16]} 29. h4 {[%clk 0:01:18]}  h5 {[%clk 0:00:12]} 30. Bg5 {[%clk 0:01:05]}  Bxg5 {[%clk 0:00:11]} 31. hxg5 {[%clk 0:01:06]}  a5 {[%clk 0:00:12]} 32. Ra1 {[%clk 0:00:50]}  Nb6 {[%clk 0:00:02]} 33. Kd2 {[%clk 0:00:46]}  Nd5 {[%clk 0:00:03]} 34. Rc1 {[%clk 0:00:42]}  Rc7 {[%clk 0:00:03]} 35. Ke2 {[%clk 0:00:41]}  Rc8 {[%clk 0:00:03]} 36. Kd2 {[%clk 0:00:41]}  b4 {[%clk 0:00:02]} 37. axb4 {[%clk 0:00:41]}  axb4 {[%clk 0:00:03]} 38. Ra1 {[%clk 0:00:33]}  c3+ {[%clk 0:00:03]} 39. bxc3 {[%clk 0:00:33]}  bxc3+ {[%clk 0:00:04]} 40. Kc1 {[%clk 0:00:32]}  Nf4 {[%clk 0:00:04]} 41. Ra7+ {[%clk 0:00:31]}  Rc7 {[%clk 0:00:04]} 42. Ra8 {[%clk 0:00:27]}  Ne2+ {[%clk 0:00:04]} 43. Kc2 {[%clk 0:00:25]}  Nxd4+ {[%clk 0:00:04]} 44. Kc1 {[%clk 0:00:25]}  c2 {[%clk 0:00:04]} 45. Bxc2 {[%clk 0:00:20]}  Rxc2+ {[%clk 0:00:04]} 46. Kd1 {[%clk 0:00:21]}  Rxf2 {[%clk 0:00:05]} 47. Ra4 {[%clk 0:00:19]}  Nxf3 {[%clk 0:00:04]} 48. Rf4 {[%clk 0:00:17]}  Ke7 {[%clk 0:00:05]} 49. Kc1 {[%clk 0:00:16]}  h4 {[%clk 0:00:05]} 0-1


[Site "https://www.chess.com"]

[Event "Titled Tuesday Blitz August 23 Late 2022"]
[White "Jones, Gawain C B"]
[Black "Wachinger, Guenther"]
[WhiteFideId "409561"]
[BlackFideId "4604261"]
[WhiteElo "2657"]
[BlackElo "2212"]
[Result "1-0"]
[Round "01"]
[TimeControl "180+1"]
[Date "2022.08.23"]
[WhiteClock "0:00:40"]
[BlackClock "0:00:06"]

1. Nf3 {[%clk 0:02:58]}  d5 {[%clk 0:02:57]} 2. g3 {[%clk 0:02:58]}  e6 {[%clk 0:02:48]} 3. Bg2 {[%clk 0:02:58]}  Nf6 {[%clk 0:02:48]} 4. O-O {[%clk 0:02:57]}  Be7 {[%clk 0:02:48]} 5. c4 {[%clk 0:02:52]}  O-O {[%clk 0:02:48]} 6. b3 {[%clk 0:02:52]}  a5 {[%clk 0:02:47]} 7. Bb2 {[%clk 0:02:52]}  a4 {[%clk 0:02:47]} 8. cxd5 {[%clk 0:02:50]}  exd5 {[%clk 0:02:47]} 9. bxa4 {[%clk 0:02:50]}  Bd7 {[%clk 0:02:31]} 10. Nc3 {[%clk 0:02:50]}  Nc6 {[%clk 0:02:29]} 11. d3 {[%clk 0:02:47]}  Nb4 {[%clk 0:02:29]} 12. a3 {[%clk 0:02:43]}  Na6 {[%clk 0:02:29]} 13. Ne5 {[%clk 0:02:38]}  Nc5 {[%clk 0:02:24]} 14. Nxd7 {[%clk 0:02:22]}  Qxd7 {[%clk 0:02:25]} 15. e4 {[%clk 0:02:10]}  d4 {[%clk 0:02:07]} 16. Ne2 {[%clk 0:02:03]}  Nxa4 {[%clk 0:01:54]} 17. Bxd4 {[%clk 0:02:01]}  Rfd8 {[%clk 0:01:55]} 18. Rb1 {[%clk 0:01:53]}  c6 {[%clk 0:01:48]} 19. Rb3 {[%clk 0:01:38]}  Nc5 {[%clk 0:01:37]} 20. Bxc5 {[%clk 0:01:37]}  Bxc5 {[%clk 0:01:37]} 21. Qc1 {[%clk 0:01:30]}  Bd4 {[%clk 0:01:11]} 22. Nxd4 {[%clk 0:01:26]}  Qxd4 {[%clk 0:01:12]} 23. Rxb7 {[%clk 0:01:26]}  Rxa3 {[%clk 0:01:10]} 24. Qxc6 {[%clk 0:01:18]}  Rxd3 {[%clk 0:01:04]} 25. Qc7 {[%clk 0:01:17]}  Qd7 {[%clk 0:00:56]} 26. Qxd7 {[%clk 0:01:07]}  R3xd7 {[%clk 0:00:57]} 27. Rxd7 {[%clk 0:01:05]}  Rxd7 {[%clk 0:00:53]} 28. e5 {[%clk 0:01:05]}  Ng4 {[%clk 0:00:48]} 29. Bh3 {[%clk 0:01:05]}  Rd4 {[%clk 0:00:43]} 30. Bxg4 {[%clk 0:01:04]}  Rxg4 {[%clk 0:00:42]} 31. f4 {[%clk 0:01:04]}  Rg6 {[%clk 0:00:38]} 32. Ra1 {[%clk 0:00:53]}  h5 {[%clk 0:00:32]} 33. Ra8+ {[%clk 0:00:50]}  Kh7 {[%clk 0:00:32]} 34. Ra7 {[%clk 0:00:51]}  Kg8 {[%clk 0:00:25]} 35. Ra8+ {[%clk 0:00:50]}  Kh7 {[%clk 0:00:25]} 36. Rf8 {[%clk 0:00:50]}  h4 {[%clk 0:00:15]} 37. Kf2 {[%clk 0:00:49]}  hxg3+ {[%clk 0:00:15]} 38. hxg3 {[%clk 0:00:50]}  Ra6 {[%clk 0:00:09]} 39. Rxf7 {[%clk 0:00:50]}  Kg6 {[%clk 0:00:10]} 40. Rd7 {[%clk 0:00:49]}  Ra3 {[%clk 0:00:09]} 41. e6 {[%clk 0:00:44]}  Kf6 {[%clk 0:00:08]} 42. Rf7+ {[%clk 0:00:38]}  Kxe6 {[%clk 0:00:06]} 43. Rxg7 {[%clk 0:00:38]}  Kf6 {[%clk 0:00:06]} 44. Rg5 {[%clk 0:00:38]}  Rb3 {[%clk 0:00:04]} 45. Kg2 {[%clk 0:00:38]}  Rb8 {[%clk 0:00:04]} 46. Kh3 {[%clk 0:00:39]}  Rh8+ {[%clk 0:00:04]} 47. Kg4 {[%clk 0:00:39]}  Rh1 {[%clk 0:00:05]} 48. Ra5 {[%clk 0:00:39]}  Rb1 {[%clk 0:00:05]} 49. Ra6+ {[%clk 0:00:39]}  Kf7 {[%clk 0:00:06]} 50. Kg5 {[%clk 0:00:39]}  Rb5+ {[%clk 0:00:06]} 51. f5 {[%clk 0:00:39]}  Rb3 {[%clk 0:00:07]} 52. Ra7+ {[%clk 0:00:39]}  Kf8 {[%clk 0:00:07]} 53. g4 {[%clk 0:00:40]}  Rb6 {[%clk 0:00:06]} 54. f6 {[%clk 0:00:40]}  Rb8 {[%clk 0:00:06]} 55. Kg6 {[%clk 0:00:40]}  Kg8 {[%clk 0:00:07]} 56. Rg7+ {[%clk 0:00:39]}  Kh8 {[%clk 0:00:06]} 57. Rh7+ {[%clk 0:00:40]} 1-0


[Site "https://www.chess.com"]

[Event "Titled Tuesday Blitz August 23 Late 2022"]
[White "Kamsky, Gata"]
[Black "Kokoszczynski, Jan"]
[WhiteFideId "2000024"]
[BlackFideId "1174460"]
[WhiteElo "2666"]
[BlackElo "2147"]
[Result "1-0"]
[Round "01"]
[TimeControl "180+1"]
[Date "2022.08.23"]
[WhiteClock "0:00:58"]
[BlackClock "0:00:24"]

1. e4 {[%clk 0:03:00]}  c6 {[%clk 0:02:57]} 2. d4 {[%clk 0:02:58]}  d5 {[%clk 0:02:58]} 3. exd5 {[%clk 0:02:58]}  cxd5 {[%clk 0:02:58]} 4. Bd3 {[%clk 0:02:59]}  Nc6 {[%clk 0:02:57]} 5. c3 {[%clk 0:02:59]}  Nf6 {[%clk 0:02:58]} 6. Bf4 {[%clk 0:02:58]}  Bg4 {[%clk 0:02:58]} 7. Qb3 {[%clk 0:02:58]}  Qd7 {[%clk 0:02:57]} 8. Nd2 {[%clk 0:02:59]}  e6 {[%clk 0:02:57]} 9. Ngf3 {[%clk 0:02:59]}  Bd6 {[%clk 0:02:58]} 10. Bg3 {[%clk 0:02:58]}  O-O {[%clk 0:02:58]} 11. O-O {[%clk 0:02:58]}  Bxg3 {[%clk 0:02:57]} 12. hxg3 {[%clk 0:02:58]}  Ne7 {[%clk 0:02:52]} 13. Ne5 {[%clk 0:02:55]}  Qc7 {[%clk 0:02:51]} 14. Rfe1 {[%clk 0:02:44]}  Bf5 {[%clk 0:02:50]} 15. Bf1 {[%clk 0:02:42]}  Rfc8 {[%clk 0:02:46]} 16. a4 {[%clk 0:02:41]}  Rab8 {[%clk 0:02:41]} 17. Qa3 {[%clk 0:02:38]}  Nc6 {[%clk 0:02:39]} 18. Nxc6 {[%clk 0:02:29]}  Qxc6 {[%clk 0:02:34]} 19. a5 {[%clk 0:02:27]}  b5 {[%clk 0:02:29]} 20. axb6 {[%clk 0:02:12]}  axb6 {[%clk 0:02:28]} 21. Qb4 {[%clk 0:02:08]}  Ra8 {[%clk 0:02:13]} 22. Nf3 {[%clk 0:02:05]}  Ne4 {[%clk 0:02:04]} 23. g4 {[%clk 0:02:03]}  Bg6 {[%clk 0:02:02]} 24. Ne5 {[%clk 0:02:02]}  Qc7 {[%clk 0:02:02]} 25. Ra3 {[%clk 0:01:54]}  Rxa3 {[%clk 0:02:02]} 26. Qxa3 {[%clk 0:01:53]}  Nd6 {[%clk 0:02:00]} 27. Ra1 {[%clk 0:01:51]}  Rb8 {[%clk 0:01:51]} 28. Qa7 {[%clk 0:01:46]}  Qxa7 {[%clk 0:01:11]} 29. Rxa7 {[%clk 0:01:44]}  b5 {[%clk 0:01:12]} 30. Nc6 {[%clk 0:01:20]}  Re8 {[%clk 0:01:10]} 31. b4 {[%clk 0:01:14]}  Bc2 {[%clk 0:01:07]} 32. Rd7 {[%clk 0:01:12]}  Nc4 {[%clk 0:00:43]} 33. Bxc4 {[%clk 0:01:08]}  bxc4 {[%clk 0:00:43]} 34. Ra7 {[%clk 0:01:02]}  f6 {[%clk 0:00:25]} 35. b5 {[%clk 0:01:02]}  e5 {[%clk 0:00:25]} 36. dxe5 {[%clk 0:00:59]}  fxe5 {[%clk 0:00:26]} 37. b6 {[%clk 0:00:58]}  d4 {[%clk 0:00:27]} 38. b7 {[%clk 0:00:58]}  d3 {[%clk 0:00:24]} 39. Ra8 {[%clk 0:00:58]} 1-0


[Site "https://www.chess.com"]

[Event "Titled Tuesday Blitz August 23 Late 2022"]
[White "Khater, Sherif"]
[Black "Bok, Benjamin"]
[WhiteFideId "2034280"]
[BlackFideId "1017063"]
[WhiteElo "2529"]
[BlackElo "2658"]
[Result "0-1"]
[Round "01"]
[TimeControl "180+1"]
[Date "2022.08.23"]
[WhiteClock "0:00:13"]
[BlackClock "0:00:08"]

1. b3 {[%clk 0:02:58]}  e5 {[%clk 0:02:56]} 2. Bb2 {[%clk 0:02:59]}  Nc6 {[%clk 0:02:55]} 3. e3 {[%clk 0:02:59]}  d5 {[%clk 0:02:55]} 4. Bb5 {[%clk 0:03:00]}  Bd6 {[%clk 0:02:54]} 5. f4 {[%clk 0:02:59]}  f6 {[%clk 0:02:52]} 6. fxe5 {[%clk 0:02:59]}  fxe5 {[%clk 0:02:52]} 7. Nf3 {[%clk 0:03:00]}  Ne7 {[%clk 0:02:24]} 8. Bxe5 {[%clk 0:02:39]}  Bxe5 {[%clk 0:02:21]} 9. Nxe5 {[%clk 0:02:38]}  O-O {[%clk 0:02:21]} 10. Bxc6 {[%clk 0:02:30]}  Nxc6 {[%clk 0:02:16]} 11. Nf3 {[%clk 0:02:25]}  Bg4 {[%clk 0:02:01]} 12. O-O {[%clk 0:02:25]}  d4 {[%clk 0:01:38]} 13. e4 {[%clk 0:01:54]}  Ne5 {[%clk 0:01:24]} 14. d3 {[%clk 0:01:53]}  Bxf3 {[%clk 0:01:03]} 15. gxf3 {[%clk 0:01:50]}  Rf4 {[%clk 0:01:02]} 16. Nd2 {[%clk 0:01:48]}  Qf6 {[%clk 0:01:02]} 17. Qe2 {[%clk 0:01:44]}  Rf8 {[%clk 0:01:02]} 18. Kg2 {[%clk 0:01:38]}  Ng6 {[%clk 0:01:01]} 19. Rf2 {[%clk 0:01:34]}  Rh4 {[%clk 0:01:00]} 20. Kh1 {[%clk 0:01:32]}  Nf4 {[%clk 0:00:59]} 21. Qf1 {[%clk 0:01:14]}  b5 {[%clk 0:00:59]} 22. a4 {[%clk 0:01:13]}  a6 {[%clk 0:00:59]} 23. axb5 {[%clk 0:01:13]}  axb5 {[%clk 0:01:00]} 24. Qe1 {[%clk 0:00:49]}  Qe5 {[%clk 0:00:59]} 25. Nf1 {[%clk 0:00:44]}  Rh6 {[%clk 0:00:28]} 26. Nd2 {[%clk 0:00:42]}  Rc6 {[%clk 0:00:25]} 27. Qd1 {[%clk 0:00:39]}  Rg6 {[%clk 0:00:16]} 28. b4 {[%clk 0:00:39]}  Nh3 {[%clk 0:00:09]} 29. Rg2 {[%clk 0:00:31]}  Rxg2 {[%clk 0:00:08]} 30. Kxg2 {[%clk 0:00:32]}  Qg5+ {[%clk 0:00:08]} 31. Kxh3 {[%clk 0:00:27]}  Rf6 {[%clk 0:00:08]} 32. Ra8+ {[%clk 0:00:24]}  Kf7 {[%clk 0:00:08]} 33. Ra6 {[%clk 0:00:13]}  Rxa6 {[%clk 0:00:08]} 0-1


[Site "https://www.chess.com"]

[Event "Titled Tuesday Blitz August 23 Late 2022"]
[White "Lenderman, Aleksandr"]
[Black "Mathieu, Phileas"]
[WhiteFideId "2021285"]
[BlackFideId "36048410"]
[WhiteElo "2607"]
[BlackElo "2138"]
[Result "1-0"]
[Round "01"]
[TimeControl "180+1"]
[Date "2022.08.23"]
[WhiteClock "0:01:38"]
[BlackClock "0:00:15"]

1. e4 {[%clk 0:02:58]}  c5 {[%clk 0:02:53]} 2. d4 {[%clk 0:02:56]}  cxd4 {[%clk 0:02:53]} 3. c3 {[%clk 0:02:56]}  dxc3 {[%clk 0:02:54]} 4. Nxc3 {[%clk 0:02:56]}  Nc6 {[%clk 0:02:54]} 5. Nf3 {[%clk 0:02:56]}  d6 {[%clk 0:02:55]} 6. Bc4 {[%clk 0:02:55]}  a6 {[%clk 0:02:55]} 7. e5 {[%clk 0:02:54]}  dxe5 {[%clk 0:02:49]} 8. Qxd8+ {[%clk 0:02:53]}  Nxd8 {[%clk 0:02:49]} 9. Nd5 {[%clk 0:02:52]}  Ne6 {[%clk 0:02:37]} 10. Nb6 {[%clk 0:02:51]}  Rb8 {[%clk 0:02:37]} 11. Nxe5 {[%clk 0:02:50]}  Nf6 {[%clk 0:02:11]} 12. Nxf7 {[%clk 0:02:49]}  Kxf7 {[%clk 0:02:06]} 13. Bf4 {[%clk 0:02:49]}  Ra8 {[%clk 0:01:39]} 14. O-O {[%clk 0:02:35]}  g5 {[%clk 0:00:37]} 15. Bg3 {[%clk 0:02:32]}  Ne4 {[%clk 0:00:33]} 16. Nxa8 {[%clk 0:02:28]}  Nd2 {[%clk 0:00:30]} 17. Nb6 {[%clk 0:02:21]}  Nxc4 {[%clk 0:00:27]} 18. Nxc4 {[%clk 0:02:20]}  Bg7 {[%clk 0:00:27]} 19. Be5 {[%clk 0:02:19]}  Nf4 {[%clk 0:00:22]} 20. Bxg7 {[%clk 0:02:17]}  Kxg7 {[%clk 0:00:23]} 21. Rfe1 {[%clk 0:02:17]}  Be6 {[%clk 0:00:19]} 22. Nd2 {[%clk 0:02:05]}  Kf7 {[%clk 0:00:17]} 23. Nf3 {[%clk 0:02:03]}  h6 {[%clk 0:00:17]} 24. Ne5+ {[%clk 0:01:57]}  Kf6 {[%clk 0:00:17]} 25. g3 {[%clk 0:01:57]}  Nd5 {[%clk 0:00:17]} 26. Rad1 {[%clk 0:01:52]}  h5 {[%clk 0:00:17]} 27. Nf3 {[%clk 0:01:43]}  h4 {[%clk 0:00:16]} 28. Nxg5 {[%clk 0:01:42]}  hxg3 {[%clk 0:00:15]} 29. Rxe6+ {[%clk 0:01:38]}  Kxg5 {[%clk 0:00:15]} 30. Rxd5+ {[%clk 0:01:38]} 1-0


[Site "https://www.chess.com"]